[Event "Rudolf Teschner GT 2022"]
[Site "Berlin"]
[Date "2022.05.26"]
[Round "1.1"]
[White "Van den Doel, Erik"]
[Black "Hofmeister, Frank"]
[Result "1-0"]
[ECO "B31"]
[WhiteElo "2581"]
[BlackElo "1842"]
[Annotator "TA"]
[PlyCount "45"]
[EventDate "2022.05.25"]
[EventType "swiss"]
[EventCountry "GER"]
[SourceTitle "playchess.com"]
[Source "ChessBase"]
[SourceQuality "1"]
[TimeControl "5400+30"]

{[%evp 9,45,15,40,6,1,16,8,-7,3,0,2,0,20,18,10,14,21,0,0,0,203,210,207,227,225,208,207,243,224,217,216,190,210,213,602,603,617,604]} 1. e4 {[%emt 0:00:20]} c5 {[%emt 0:00:05]} 2. Nf3 {[%emt 0:00:05]} Nc6 {[%emt 0:00:01]} 3. Bb5 {[%emt 0:00:06]} g6 {[%emt 0:00:37]} 4. O-O {[%emt 0:00:12]} Bg7 {[%emt 0:00:05]} 5. c3 {[%emt 0:03:26]} Qb6 {[%emt 0:03:31]} 6. Bc4 {[%emt 0:07:35][%cal Bb5c4,Bc4b3,Bb3a4][%mdl 32] B31: Sicilian: 2...Nc6 3 Bb5 g6.} e6 {[%emt 0:02:16] [#]} 7. Bb3 $146 {[%emt 0:10:39]} ({Predecessor:} 7. Re1 Nge7 8. e5 d5 9. exd6 Nf5 10. d3 Nxd6 11. Bb3 O-O 12. Bf4 Na5 13. Nbd2 Rd8 {1-0 (37) Muzychuk,M (2552)-Worek,J (2316) Monte Carlo 2019}) 7... Nge7 {[%emt 0:04:52]} 8. Qe2 {[%emt 0:01:28] The position is equal.} d6 {[%emt 0:04:07]} 9. d3 {[%emt 0:04:22]} O-O {[%emt 0:02:20]} 10. Be3 {[%emt 0:01:47]} a5 {[%emt 0:01:48]} 11. Ba4 {[%emt 0:05:55]} Qa6 {[%emt 0:15:46]} 12. Na3 {[%emt 0:05:11][%cal Bb1a3,Ba3b5,Bb5d6,Bd6e4][%mdl 32] Prevents b5. With the idea Nb5.} Na7 {[%emt 0:02:13] Against Nb5} 13. c4 {[%emt 0:13:30]} Qb6 {[%emt 0:11:03]} 14. Rab1 $36 {[%emt 0:00:40][%mdl 2048] White is pushing.} Qb4 $2 {[%emt 0:01:49] [#]} (14... e5 $11) 15. Bb5 $18 {[%emt 0:04:00]} Nxb5 {[%emt 0:02:46]} 16. Nxb5 {[%emt 0:01:16]} Bd7 {[%emt 0:13:45]} 17. a3 {[%emt 0:05:51]} ({Don't play} 17. Nxd6 $6 Qb6 $16) 17... Qb3 {[%emt 0:03:06]} 18. Nd2 {[%emt 0:00:15]} ({Resist} 18. Nxd6 Qb6) 18... Qa2 {[%emt 0:01:19]} 19. Nxd6 {[%emt 0:03:41]} b6 {[%emt 0:05:09]} 20. f4 {[%emt 0:00:26]} Rad8 {[%emt 0:07:11]} 21. e5 {[%emt 0:01:51] [#] N6e4 is the strong threat.} Nf5 $2 {[%emt 0:00:55]} (21... Bc6 22. b4 axb4) 22. N6e4 {[%emt 0:02:15] Pair of Knights!} Nd4 {[%emt 0:04:08]} 23. Qd1 {[%emt 0:01:05] Weighted Error Value: White=0.04 (flawless) /Black=0.39} 1-0

[Event "Rudolf Teschner GT 2022"]
[Site "Berlin"]
[Date "2022.05.26"]
[Round "1.2"]
[White "Guder, Sibylle"]
[Black "Spiess, Gunter"]
[Result "0-1"]
[ECO "A13"]
[WhiteElo "1839"]
[BlackElo "2388"]
[Annotator "TA"]
[PlyCount "34"]
[EventDate "2022.05.25"]
[EventType "swiss"]
[EventCountry "GER"]
[SourceTitle "playchess.com"]
[Source "ChessBase"]
[SourceQuality "1"]
[TimeControl "5400+30"]

{[%evp 12,34,-15,-11,0,0,-8,0,0,0,0,0,0,-3,0,-58,-62,-64,-57,-133,-131,-368,-383,-3369,-3542]} 1. Nf3 {[%emt 0:00:04]} d5 {[%emt 0:01:00]} 2. c4 {[%emt 0:00:11]} e6 {[%emt 0:00:30]} 3. b3 {[%emt 0:00:10]} Nf6 {[%emt 0:00:38]} 4. Bb2 {[%emt 0:00:06]} c5 {[%emt 0:00:22]} 5. cxd5 {[%emt 0:00:29]} exd5 {[%emt 0:00:16]} 6. d4 {[%emt 0:01:31]} Nc6 {[%emt 0:01:54]} 7. e3 {[%emt 0:04:08]} cxd4 {[%emt 0:00:23] A13: English Opening: 1...e6.} 8. Nxd4 {[%emt 0:00:26]} Bb4+ {[%emt 0:00:04]} 9. Bc3 $1 {[%emt 0:08:28]} Bd6 {[%emt 0:00:36] The position is equal.} 10. Nxc6 {[%emt 0:03:36]} bxc6 {[%emt 0:00:06]} 11. Bd3 {[%emt 0:00:53]} O-O {[%emt 0:01:01][%cal Bh8f8,Bf8e8,Be8e4,Be4e3][%mdl 32]} 12. Nd2 {[%emt 0:02:31]} Re8 {[%emt 0:08:13][%cal Od5d4] [#]} 13. Nf3 $146 {[%emt 0:04:44]} ({White should play} 13. O-O $11) ({Predecessor:} 13. Qc2 c5 14. Be2 d4 15. exd4 Bg4 16. f3 Nd5 17. Nc4 Nf4 18. fxg4 Rxe2+ 19. Qxe2 Nxe2 20. Kxe2 {0-1 (37) Solovchuk,A (2302)-Izoria,Z (2602) Chess.com INT 2022}) 13... Ne4 {[%emt 0:03:04]} 14. Bxe4 {[%emt 0:03:25]} Rxe4 {[%emt 0:02:03]} 15. h3 {[%emt 0:12:18]} (15. O-O $15) 15... Ba6 $17 {[%emt 0:06:26] Black is more active.} 16. Rc1 $2 {[%emt 0:08:50]} (16. Qc2 $17) 16... c5 $19 {[%emt 0:02:02] Threatens to win with ...d4.} 17. Nd2 $2 {[%emt 0:13:35] [#]} ({Don't blunder} 17. Qxd5 $2 {[#]} Rxe3+ $3 {[%mdl 512]} 18. fxe3 Bg3+ 19. Kd2 Qxd5+ $19) (17. Kd2 d4 18. Bb2) 17... Rxe3+ $3 {[%emt 0:00:33][%mdl 512] Weighted Error Value: White=0.84/Black=0.02 (flawless)} 0-1

[Event "Rudolf Teschner GT 2022"]
[Site "Berlin"]
[Date "2022.05.26"]
[Round "1.3"]
[White "Florstedt, Johannes"]
[Black "Gruening, Thomas"]
[Result "1-0"]
[ECO "B01"]
[WhiteElo "2365"]
[BlackElo "1831"]
[Annotator "TA"]
[PlyCount "39"]
[EventDate "2022.05.25"]
[EventType "swiss"]
[EventCountry "GER"]
[SourceTitle "playchess.com"]
[Source "ChessBase"]
[SourceQuality "1"]
[TimeControl "5400+30"]

{[%evp 11,39,36,58,38,33,40,37,0,0,16,25,27,33,17,16,11,89,97,102,91,77,38,49,35,135,129,29991,161,29992,29993]} 1. e4 {[%emt 0:00:03]} d5 {[%emt 0:00:12]} 2. exd5 {[%emt 0:00:08]} Qxd5 {[%emt 0:00:05]} 3. Nc3 {[%emt 0:00:12]} Qd6 {[%emt 0:00:11]} 4. Nf3 {[%emt 0:00:45]} Nf6 {[%emt 0:00:08]} 5. d4 {[%emt 0:00:18][%cal Bd2d4,Bd4d5][%mdl 32]} a6 {[%emt 0:00:23]} 6. g3 {[%emt 0:00:34]} Bg4 {[%emt 0:01:14]} 7. Bg2 {[%emt 0:02:16] B01: Scandinavian Defence.} Nc6 {[%emt 0:00:28]} 8. d5 {[%emt 0:01:58]} Ne5 {[%emt 0:02:39]} 9. Bf4 {[%emt 0:00:16] White is slightly better.} Nxf3+ {[%emt 0:00:44]} 10. Bxf3 {[%emt 0:00:12]} Bxf3 {[%emt 0:00:33]} 11. Qxf3 {[%emt 0:00:10]} e5 {[%emt 0:05:37]} 12. Qe2 {[%emt 0:11:29]} Nd7 {[%emt 0:12:09]} 13. O-O-O {[%emt 0:00:08] [#]} f6 $146 {[%emt 0:03:56]} (13... O-O-O $11 14. Bg5 Re8) ({Predecessor:} 13... Be7 14. Be3 f5 15. g4 g6 16. gxf5 gxf5 17. Rhg1 O-O-O 18. Qh5 f4 19. Bd2 Nf6 {1-0 (50) Miesbauer,J (2298)-Skoda,M (2126) Czech Republic 2018}) 14. Ne4 $36 {[%emt 0:01:58][%mdl 2048] White is on the roll.} Qb4 {[%emt 0:04:51]} 15. a3 {[%emt 0:03:01] White is much more active. The black rooks are badly placed.} Qb5 {[%emt 0:06:42]} 16. Qh5+ {[%emt 0:09:14]} g6 {[%emt 0:03:57]} 17. Nxf6+ {[%emt 0:03:35]} Nxf6 {[%emt 0:00:17]} ({Black should try} 17... Kd8 $14 18. Qg5 exf4 19. Nxh7+ (19. Nxd7+ Be7 $15) 19... Kc8 20. Nxf8 Rxf8) 18. Qxe5+ {[%emt 0:00:19]} Kf7 $4 {[%emt 0:10:00][%mdl 8192] [#]} (18... Be7 $16) 19. Qe6+ $1 {[%emt 0:02:15]} Kg7 {[%emt 0:00:25] White must now prevent ...Re8.} 20. Be5 {[%emt 0:00:45] Weighted Error Value: White=0.08 (flawless) /Black=0.68} 1-0

[Event "Rudolf Teschner GT 2022"]
[Site "Berlin"]
[Date "2022.05.26"]
[Round "1.4"]
[White "Chinguun Sundui"]
[Black "Tschernatsch, Johannes"]
[Result "0-1"]
[ECO "B31"]
[WhiteElo "1731"]
[BlackElo "2358"]
[Annotator "TA"]
[PlyCount "100"]
[EventDate "2022.05.25"]
[EventType "swiss"]
[EventCountry "GER"]
[SourceTitle "playchess.com"]
[Source "ChessBase"]
[SourceQuality "1"]
[TimeControl "5400+30"]

{[%evp 9,100,20,27,13,16,15,31,2,41,21,20,4,19,8,20,18,29,14,19,29,27,20,54,85,269,68,75,66,82,68,74,45,46,29,53,14,16,-25,23,-43,0,0,-8,-52,-23,-58,-8,-56,-70,-87,-81,-81,-75,-218,-200,-291,-291,-287,-285,-248,-237,-224,-218,-305,-136,-136,0,-79,-64,-79,-56,-386,-350,-360,-401,-372,-106,-106,-106,-106,-106,-471,-458,-699,-583,-968,-833,-760,-643,-1327,-1327,-1220,-854]} 1. e4 {[%emt 0:00:01]} c5 {[%emt 0:00:08]} 2. Nf3 {[%emt 0:00:04]} Nc6 {[%emt 0:00:06]} 3. Bb5 {[%emt 0:00:04]} g6 {[%emt 0:00:08]} 4. O-O {[%emt 0:00:11]} Bg7 {[%emt 0:00:06]} 5. Bxc6 {[%emt 0:00:20]} dxc6 {[%emt 0:00:08]} 6. Re1 {[%emt 0:00:39] B31: Sicilian: 2...Nc6 3 Bb5 g6.} Qc7 {[%emt 0:01:45]} 7. d3 {[%emt 0:01:07]} Nf6 {[%emt 0:00:48][%cal Bg8f6,Bf6d7,Bd7e5,Be5f7,Bf7d8][%mdl 32]} 8. h3 {[%emt 0:00:51] White is slightly better.} O-O {[%emt 0:02:07]} 9. Be3 {[%emt 0:03:27]} (9. e5 $5 {[%cal Re5f6]} Nd5 10. c4 $11) 9... b6 {[%emt 0:04:16]} 10. Nc3 {[%emt 0:01:06]} Rd8 {[%emt 0:01:47]} 11. Qd2 {[%emt 0:05:31] [#]} Nd7 $146 {[%emt 0:00:10]} ({Predecessor:} 11... e6 12. Bg5 Rd7 13. Bh6 Bh8 14. e5 Nd5 15. Nxd5 Rxd5 16. Re4 Ba6 17. Rae1 Rad8 {0-1 (38) De Silva,R (1399)-Al Moaamari,M (1366) Tornelo INT 2021}) 12. a4 {[%emt 0:04:33]} a5 {[%emt 0:00:21]} 13. Ng5 {[%emt 0:01:17]} h6 {[%emt 0:03:38]} 14. Nf3 {[%emt 0:00:29]} Kh7 {[%emt 0:01:37]} 15. Nh2 {[%emt 0:00:53]} Ne5 {[%emt 0:06:50]} 16. Qe2 {[%emt 0:01:35]} f5 $2 {[%emt 0:05:49] [#]} (16... g5 $16) 17. f4 $2 {[%emt 0:01:17]} ({White must play} 17. exf5 $1 $18 {Threatens to win with Bf4.} Rf8 18. f4) 17... Nf7 $14 {[%emt 0:00:20]} 18. e5 {[%emt 0:01:45]} Be6 {[%emt 0:01:37]} 19. Rf1 {[%emt 0:03:16]} Rg8 {[%emt 0:04:51]} 20. Kf2 {[%emt 0:07:17]} Nd8 {[%emt 0:02:30]} 21. Qf3 {[%emt 0:03:54]} Bf7 {[%emt 0:01:51]} 22. Rad1 {[%emt 0:04:56]} Ne6 {[%emt 0:00:10]} 23. Ne2 {[%emt 0:01:05] Inhibits Nd4.} Rad8 {[%emt 0:01:53]} (23... g5 $142 24. g3 Rad8) 24. Ke1 {[%emt 0:02:19]} ({Better is} 24. h4 $11) 24... Nd4 {[%emt 0:03:39]} 25. Bxd4 {[%emt 0:02:00]} cxd4 {[%emt 0:00:05]} 26. g4 {[%emt 0:00:40]} c5 {[%emt 0:03:52]} 27. b3 {[%emt 0:00:35]} Qd7 {[%emt 0:02:33]} (27... Bd5 $15 28. Qg3 fxg4 29. Nxg4 Rdf8) 28. Ng3 {[%emt 0:01:58]} (28. Qg3 $11) 28... Bd5 $36 {[%emt 0:00:28][%mdl 2048] White is under pressure.} 29. Qe2 {[%emt 0:02:20]} e6 {[%emt 0:00:20]} 30. h4 {[%emt 0:07:30]} Bf8 {[%emt 0:00:57]} 31. h5 {[%emt 0:03:18]} (31. g5 $17) 31... Be7 {[%emt 0:01:20] And now ...g5 would win.} 32. hxg6+ {[%emt 0:01:59]} (32. Nf3 $142) 32... Rxg6 $19 {[%emt 0:00:10]} 33. Nh5 {[%emt 0:01:06]} Rdg8 {[%emt 0:01:03][%cal Rf5g4]} 34. Rg1 {[%emt 0:01:04]} b5 {[%emt 0:03:15]} 35. axb5 {[%emt 0:05:06]} Qxb5 {[%emt 0:00:10]} 36. g5 {[%emt 0:01:02]} a4 {[%emt 0:07:13]} (36... hxg5 $19 {has better winning chances.} 37. fxg5 Rxg5 38. Rxg5 Bxg5) 37. bxa4 $17 {[%emt 0:00:43]} Qxa4 {[%emt 0:00:12] Black is more active.} (37... Qb4+ $17 38. Kf1 Qb7 39. Nf6+ Bxf6 40. exf6 hxg5) 38. Nf6+ {[%emt 0:25:12]} (38. Nf3 $1 $11 {keeps the balance.} Qa8 39. Kf2 (39. Nh4 hxg5 40. Nxg6 Kxg6 $17)) 38... Bxf6 {[%emt 0:00:13]} 39. exf6 {[%emt 0:00:05]} Qa5+ {[%emt 0:00:58]} ({Much weaker is} 39... hxg5 40. Nf3 gxf4 41. Rh1+ Rh6 42. Rxh6+ Kxh6 43. f7 $11) 40. Kf2 $2 {[%emt 0:00:47][%mdl 8192]} (40. Kf1 $1 $15) 40... Qc7 $19 {[%emt 0:00:17]} 41. Qe5 {[%emt 0:05:51]} Qxe5 {[%emt 0:00:34] Dancing on a razor blade.} 42. fxe5 {[%emt 0:00:02]} Rxg5 $2 {[%emt 0:04:00]} (42... hxg5 $19 43. Nf1 g4) 43. Rxg5 $17 {[%emt 0:00:50]} hxg5 $19 {[%emt 0:01:32][%cal Bh6g5,Bg5g4,Bg4g3][%mdl 4128] Endgame KRB-KRN} 44. Ra1 {[%emt 0:00:47]} Kh6 {[%emt 0:04:01] [#] aiming for ...g4.} 45. Nf3 $2 {[%emt 0:01:20][%mdl 8192]} (45. Ra7 $17) 45... g4 {[%emt 0:00:39] Black is clearly winning.} 46. Nh4 {[%emt 0:00:45]} (46. Ng1 $142 f4 47. Ne2 g3+ 48. Ke1) 46... Kg5 {[%emt 0:00:21]} 47. Ng2 {[%emt 0:00:28]} f4 {[%emt 0:00:07] ...g3+ is the strong threat.} 48. Ra7 {[%emt 0:00:21]} g3+ {[%emt 0:00:16]} 49. Kg1 {[%emt 0:00:14] Intending Rg7+ and mate.} Rb8 {[%emt 0:01:10] ( -> ...Rb1+)} 50. Rg7+ {[%emt 0:00:58]} Kf5 {[%emt 0:00:06] Weighted Error Value: White=0.76/Black=0.36} 0-1

[Event "Rudolf Teschner GT 2022"]
[Site "Berlin"]
[Date "2022.05.26"]
[Round "1.5"]
[White "Langrock, Hannes"]
[Black "Nguyen, Phuc Nhat"]
[Result "1-0"]
[ECO "D02"]
[WhiteElo "2351"]
[BlackElo "1809"]
[Annotator "TA"]
[PlyCount "73"]
[EventDate "2022.05.25"]
[EventType "swiss"]
[EventCountry "GER"]
[SourceTitle "playchess.com"]
[Source "ChessBase"]
[SourceQuality "1"]
[TimeControl "5400+30"]

{[%evp 9,73,4,8,-9,11,0,15,20,10,1,1,8,25,0,32,-23,-8,-27,12,3,131,130,177,143,235,216,448,353,353,357,343,350,368,380,353,368,441,433,432,422,476,444,450,446,495,491,481,472,599,566,546,447,738,637,642,647,640,593,690,675,700,681,993,931,2314,2169]} 1. d4 {[%emt 0:00:05]} d5 {[%emt 0:00:49]} 2. Nf3 {[%emt 0:00:07]} Nf6 {[%emt 0:00:23]} 3. g3 {[%emt 0:00:09]} c6 {[%emt 0:00:06]} 4. Bg2 {[%emt 0:00:13]} Bg4 {[%emt 0:00:07]} 5. c4 {[%emt 0:01:32]} e6 {[%emt 0:01:06]} 6. h3 {[%emt 0:01:03] D02: 1 d4 d5 2 Nf3 sidelines, including 2...Nf6 3 g3 and 2...Nf6 3 Bf4.} Bf5 {[%emt 0:00:49]} 7. Nc3 {[%emt 0:00:48]} h6 {[%emt 0:00:13]} 8. Qb3 {[%emt 0:00:47] The position is equal.} Qb6 {[%emt 0:00:26]} 9. c5 {[%emt 0:00:16] [#]} Qxb3 $146 {[%emt 0:01:26]} ({Predecessor:} 9... Qc7 10. Bf4 Qc8 11. Nd2 Be7 12. e4 dxe4 13. Bxe4 Nxe4 14. Ndxe4 O-O 15. Nd6 Bxd6 16. Bxd6 {0-1 (29) Ronka,E (2355)-Jaracz,P (2459) Chess.com INT 2022}) 10. axb3 {[%emt 0:00:03]} Na6 {[%emt 0:06:00]} 11. Ra4 {[%emt 0:08:51]} Bc2 {[%emt 0:06:53]} 12. Ra3 {[%emt 0:41:26]} (12. Be3 $14) 12... Nd7 $11 {[%emt 0:23:19][%cal Oe6e5]} 13. O-O {[%emt 0:08:24]} e5 {[%emt 0:05:34]} 14. Be3 {[%emt 0:08:52]} exd4 {[%emt 0:15:54]} (14... Bg6 $11 {keeps the balance.}) 15. Nxd4 $16 {[%emt 0:00:26][%cal Bf3d4,Bd4c6,Bc6e5][%mdl 32] Black is now going downhill.} Bg6 {[%emt 0:01:24]} (15... Be4 $16 {is a better defense.}) 16. Nxc6 {[%emt 0:01:22][%cal Ob3b4] Threatens to win with b4!} Ndxc5 {[%emt 0:09:05]} (16... Bxc5 $16 17. Bxc5 Ndxc5) 17. Ne5 {[%emt 0:06:33]} O-O-O $2 {[%emt 0:09:50]} (17... Be4 {might work better.} 18. Nxd5 f6) 18. Bxd5 {[%emt 0:03:25]} Nd7 {[%emt 0:03:35]} 19. Nxg6 {[%emt 0:01:44]} ({Weaker is} 19. Nxf7 Bxf7 20. Bxf7 Bxa3 21. bxa3 Ne5 $16) 19... fxg6 {[%emt 0:01:58]} 20. Ra5 {[%emt 0:02:12]} (20. Bxa7 Bxa3 21. bxa3 Nf6 $18) 20... Bc5 {[%emt 0:03:48]} 21. Bxc5 {[%emt 0:01:50]} Ndxc5 {[%emt 0:00:45]} 22. b4 {[%emt 0:03:44]} b6 {[%emt 0:01:43]} 23. Ra3 {[%emt 0:02:16] White is clearly winning.} ({Not} 23. bxc5 bxa5 24. Ra1 Nb4 $16) ({Don't do} 23. Raa1 Nxb4 24. Rxa7 Nxd5 $18) 23... Nxb4 {[%emt 0:00:39] [#]} 24. Rxa7 $1 {[%emt 0:00:53]} Kb8 {[%emt 0:05:53] [#]} (24... Nxd5 25. Nxd5) 25. Rfa1 {[%emt 0:02:25] Threatening mate with Ra8+.} Nxd5 {[%emt 0:00:42]} 26. Nxd5 {[%emt 0:00:14]} Rxd5 {[%emt 0:00:10]} 27. Ra8+ {[%emt 0:00:10][%mdl 64] Skewer} Kc7 {[%emt 0:00:06] ...Rxa8 is the strong threat.} 28. Rxh8 $18 {[%emt 0:00:22][%mdl 4096] Endgame KRR-KRN} Rd2 {[%emt 0:00:05]} 29. b4 {[%emt 0:00:44]} Ne6 {[%emt 0:00:16]} 30. Kf1 {[%emt 0:01:23]} Nd4 {[%emt 0:01:35]} (30... Rb2 $142 31. Rc1+ Kd7 32. Rd1+ Ke7) 31. Rg8 {[%emt 0:00:51]} Ne6 {[%emt 0:00:47]} 32. Ra7+ {[%emt 0:01:04]} Kc6 {[%emt 0:00:08]} 33. Re7 {[%emt 0:00:16]} Kd6 {[%emt 0:00:20]} 34. Rexg7 {[%emt 0:00:32]} Rd1+ {[%emt 0:01:02]} 35. Kg2 {[%emt 0:00:02]} g5 {[%emt 0:00:11]} 36. Rg6 {[%emt 0:00:24] Rd8+ would kill now.} Ke5 {[%emt 0:00:09]} 37. Re8 {[%emt 0:00:18] Weighted Error Value: White=0.25 (precise) /Black=0.45} 1-0

[Event "Rudolf Teschner GT 2022"]
[Site "Berlin"]
[Date "2022.05.26"]
[Round "1.6"]
[White "Kandeler, Christian"]
[Black "Klenburg, Michael"]
[Result "0-1"]
[ECO "C01"]
[WhiteElo "1821"]
[BlackElo "2346"]
[Annotator "TA"]
[PlyCount "62"]
[EventDate "2022.05.25"]
[EventType "swiss"]
[EventCountry "GER"]
[SourceTitle "playchess.com"]
[Source "ChessBase"]
[SourceQuality "1"]
[TimeControl "5400+30"]

{[%evp 10,62,21,16,52,31,42,28,36,0,2,1,13,0,0,0,27,-6,-17,-10,-11,-18,0,-21,-16,-16,-11,-19,-6,-9,0,0,24,0,8,0,0,0,0,0,0,-33,-36,-278,-287,-439,-436,-433,-423,-598,-411,-907,-617,-610,-607]} 1. e4 {[%emt 0:00:05]} e6 {[%emt 0:00:28]} 2. d4 {[%emt 0:00:10]} d5 {[%emt 0:00:12]} 3. Nc3 {[%emt 0:00:06]} Bb4 {[%emt 0:00:58]} 4. exd5 {[%emt 0:00:11]} exd5 {[%emt 0:00:36]} 5. Bd3 {[%emt 0:00:07]} c6 {[%emt 0:02:01]} 6. Nf3 {[%emt 0:01:38]} Bg4 {[%emt 0:04:03] C01: French: Exchange Variation.} 7. h3 {[%emt 0:00:54]} Bh5 {[%emt 0:00:23]} 8. O-O {[%emt 0:00:26]} Ne7 {[%emt 0:02:13] White has an edge.} 9. Bf4 {[%emt 0:01:56]} Bd6 {[%emt 0:06:33]} 10. Bxd6 {[%emt 0:04:25]} Qxd6 {[%emt 0:01:01]} 11. Re1 {[%emt 0:01:18] [#]} Nd7 $146 {[%emt 0:02:02]} ({Predecessor:} 11... O-O 12. g4 Bg6 13. Qe2 Nc8 14. Bxg6 Qxg6 15. Qe3 f6 16. Nh4 Qf7 17. Nf5 Na6 {0-1 (58) Malm,A (1990)-Schumann,C (1859) IECC email 1998}) 12. a3 {[%emt 0:04:50]} Qf6 {[%emt 0:17:24]} 13. Be2 {[%emt 0:05:02]} (13. Re3 $5 {[%cal Rd1e2]}) 13... Bxf3 {[%emt 0:01:45]} 14. Bxf3 {[%emt 0:00:42]} O-O {[%emt 0:00:14]} 15. Bg4 {[%emt 0:04:56]} Nb6 {[%emt 0:01:03]} 16. Ne2 {[%emt 0:02:38]} g6 {[%emt 0:02:17]} 17. Ng3 {[%emt 0:02:54]} Rae8 {[%emt 0:04:15]} 18. c3 {[%emt 0:01:00]} Qd6 {[%emt 0:02:37]} 19. Qc2 {[%emt 0:09:43]} f5 {[%emt 0:03:31]} 20. Bf3 {[%emt 0:03:16]} Qd7 {[%emt 0:02:58]} 21. Re2 {[%emt 0:02:10]} Nec8 {[%emt 0:00:21]} 22. Rae1 {[%emt 0:00:47]} Nd6 {[%emt 0:00:24]} 23. Rxe8 {[%emt 0:08:54]} Rxe8 {[%emt 0:00:17]} 24. Rxe8+ {[%emt 0:02:03]} Qxe8 {[%emt 0:00:15]} 25. a4 {[%emt 0:00:17]} Qe1+ {[%emt 0:01:14]} 26. Kh2 $2 {[%emt 0:00:21] [#] Now White is beyond hope.} ({White has to play} 26. Nf1 $1 $15) 26... Nbc4 $1 $19 {[%emt 0:01:20]} ({Inferior is} 26... f4 27. Ne2 $15) 27. b3 {[%emt 0:06:07]} (27. h4 {was necessary.}) 27... Nd2 {[%emt 0:00:50] ...f4 is the strong threat.} 28. Qd1 {[%emt 0:08:07]} Qxf2 {[%emt 0:00:33] Threatens to win with ...f4.} 29. Be2 {[%emt 0:00:46]} (29. Qe2 $142 Qxe2 30. Nxe2) 29... Qf4 {[%emt 0:01:44] White must now prevent ...N6e4.} 30. Kh1 {[%emt 0:02:31]} (30. Bf3 $142) 30... Qxg3 {[%emt 0:00:21]} 31. Qxd2 {[%emt 0:00:12]} Ne4 {[%emt 0:00:11][%csl LRc3,LRd2] Weighted Error Value: White=0.57/Black=0.25 (precise)} 0-1

[Event "Rudolf Teschner GT 2022"]
[Site "Berlin"]
[Date "2022.05.26"]
[Round "2.1"]
[White "Pueschel, Werner"]
[Black "Van den Doel, Erik"]
[Result "0-1"]
[ECO "A22"]
[WhiteElo "2037"]
[BlackElo "2581"]
[Annotator "TA"]
[PlyCount "46"]
[EventDate "2022.05.25"]
[EventType "swiss"]
[EventCountry "GER"]
[SourceTitle "playchess.com"]
[Source "ChessBase"]
[SourceQuality "1"]
[TimeControl "5400+30"]

{[%evp 13,46,1,45,15,8,0,0,0,0,0,0,0,0,0,0,0,-4,-21,-39,-28,-13,-25,-16,-4,-4,-5,-12,0,0,-56,-52,-124,-112,-193,-190]} 1. c4 {[%emt 0:00:06]} Nf6 {[%emt 0:07:45]} 2. Nc3 {[%emt 0:00:14]} e5 {[%emt 0:00:09]} 3. g3 {[%emt 0:00:17]} Bb4 {[%emt 0:00:16]} 4. Bg2 {[%emt 0:00:13]} O-O {[%emt 0:00:05]} 5. Nf3 {[%emt 0:06:22]} Re8 {[%emt 0:00:44]} 6. O-O {[%emt 0:01:57]} c6 {[%emt 0:01:08]} 7. Qb3 {[%emt 0:07:43]} Bf8 {[%emt 0:04:26]} 8. d3 {[%emt 0:01:06] A22: English Opening: 1...e5 2 Nc3 Nf6.} d6 {[%emt 0:00:57]} 9. e4 {[%emt 0:02:25]} a6 {[%emt 0:00:40] [#]} 10. a4 $146 {[%emt 0:03:52] The position is equal.} ({Predecessor:} 10. Be3 b5 11. Rad1 Nbd7 12. d4 b4 13. dxe5 dxe5 14. Na4 Qc7 15. c5 Ng4 16. Ng5 {1-0 (28) Dautov,R (2350)-Moskalenko,V (2430) Pinsk 1986}) 10... a5 {[%emt 0:01:06]} 11. Be3 {[%emt 0:04:12]} Na6 {[%emt 0:00:41][%cal Bb8a6,Ba6c5,Bc5b3][%mdl 32]} 12. Rad1 {[%emt 0:01:57]} Nc5 {[%emt 0:10:49]} 13. Qc2 {[%emt 0:00:52]} Qb6 {[%emt 0:01:56]} 14. h3 {[%emt 0:11:35] Inhibits Ng4.} Qb3 {[%emt 0:10:59]} 15. Qxb3 {[%emt 0:03:30]} Nxb3 {[%emt 0:01:44]} 16. Rfe1 {[%emt 0:04:23]} Ra6 {[%emt 0:07:29]} 17. d4 {[%emt 0:10:20]} exd4 {[%emt 0:05:33]} 18. Nxd4 {[%emt 0:02:46]} Nc5 {[%emt 0:00:06]} 19. f3 {[%emt 0:00:39]} g6 {[%emt 0:04:30]} 20. Bf1 {[%emt 0:11:31]} Nfd7 {[%emt 0:08:06]} 21. Kg2 {[%emt 0:03:08]} ({Better is} 21. Rb1 $11) 21... Bg7 $15 {[%emt 0:03:30]} 22. Nde2 {[%emt 0:02:58]} (22. Rb1 $15) 22... Rb6 $17 {[%emt 0:02:20]} 23. Rxd6 {[%emt 0:08:08]} (23. Rb1 $17) 23... Rxb2 {[%emt 0:00:29] Weighted Error Value: White=0.18 (very precise) /Black=0.04 (flawless)} 0-1